bitfinex/quotes_SOLUSD_20241021
["timestamp","ask_amount","ask_price","bid_price","bid_amount"]
[1729494034114,5.9187,168.96,168.9,103.55519564]
[1729494034493,20.0,169.0,168.9,103.55519564]
[1729494034699,20.0,168.97,168.9,109.47569564]
[1729494034900,25.9182,168.97,168.9,109.47569564]
[1729494035495,20.0,168.97,168.9,87.78319564]
[1729494035707,5.9196,168.93,168.9,87.78319564]
[1729494036805,5.92,168.92,168.9,87.78319564]
[1729494037007,5.9195,168.94,168.9,87.78319564]
[1729494037210,20.0,168.95,168.9,87.78319564]
[1729494037401,5.9197,168.93,168.9,87.78319564]
[1729494037797,6.94235905,168.93,168.9,87.78319564]
[1729494040417,1.02265905,168.93,168.9,87.78319564]
[1729494040593,5.9201,168.92,168.9,87.78319564]
[1729494041317,1.02265905,168.93,168.9,87.78319564]
[1729494041517,6.11072175,168.95,168.9,87.78319564]
[1729494041719,6.6083,169.07,168.96,5.9184]
[1729494041898,1.02217861,168.98,168.96,5.9184]
[1729494042220,12.03262793,169.03,168.96,5.9184]
[1729494042600,6.11642793,169.03,169.0,5.9171]
[1729494042801,6.11642793,169.03,168.98,20.7117]
[1729494043015,5.9169,169.01,168.94,36.0583]
[1729494043529,6.11642793,169.03,168.94,36.0583]
[1729494043530,5.9175,168.99,168.94,30.1394]
[1729494044404,5.9183,168.97,168.94,15.3414]
[1729494044600,5.9175,168.99,168.94,15.3414]
[1729494045102,5.9179,168.98,168.94,15.3414]
[1729494045529,20.0,168.98,168.9,87.78319564]
[1729494045702,20.0,168.98,168.9,102.58459564]
[1729494045903,5.9171,169.0,168.9,87.78319564]
[1729494046109,5.9175,168.99,168.93,5.9194]
[1729494046537,5.918,168.98,168.92,14.7999]
[1729494046704,5.918,168.98,168.92,20.7198]
[1729494046905,6.11642793,169.03,168.95,14.7969]
[1729494047426,6.21642793,169.03,168.92,5.9197]
[1729494047598,5.9179,168.98,168.92,5.9197]
[1729494048216,35.54,169.02,168.91,14.8004]
[1729494048409,59.216884,169.01,168.91,14.8004]
[1729494048823,20.0,169.0,168.91,14.8004]
[1729494049918,5.9175,168.99,168.92,5.9198]
[1729494050123,5.9179,168.98,168.92,5.9198]
[1729494050321,5.9187,168.96,168.91,14.8004]
[1729494050504,20.0,169.0,168.91,14.8004]
[1729494050706,5.9179,168.98,168.92,5.9197]
[1729494054218,25.9174,169.0,168.9,87.78319564]
[1729494054421,5.918,168.98,168.93,14.7989]
[1729494056715,5.9177,168.99,168.93,20.7184]
[1729494057319,6.12103141,169.01,168.96,14.7963]
[1729494057523,0.1,169.05,168.94,6.1656]
[1729494057730,5.9174,169.0,168.94,12.0846]
[1729494057929,5.9174,169.0,168.95,5.9188]
[1729494058430,5.9169,169.01,168.96,5.9185]
[1729494059230,5.9164,169.02,168.96,5.9185]
[1729494060153,5.9164,169.02,168.95,14.7971]
[1729494060321,5.9164,169.02,168.96,5.9185]
[1729494060818,6.11528924,169.03,168.97,5.9181]
[1729494061035,12.03138924,169.03,168.97,5.9181]
[1729494061940,6.11528924,169.03,168.98,5.9177]
[1729494062134,6.11528924,169.03,168.98,21.5483]
[1729494062338,6.11528924,169.03,168.99,5.9174]
[1729494062845,6.11528924,169.03,169.0,5.917]
[1729494063051,14.86334678,169.06,168.99,14.7937]
[1729494063444,5.9154,169.05,169.0,5.9171]
[1729494064120,8.94814678,169.06,169.02,5.9161]
[1729494064327,8.94814678,169.06,168.98,15.6306]
[1729494064753,5.9155,169.05,169.0,5.9168]
[1729494065051,8.94814678,169.06,168.99,20.7111]
[1729494065227,5.9157,169.04,168.99,20.7111]
[1729494065629,8.94814678,169.06,168.99,14.7937]
[1729494065951,5.9155,169.05,169.0,5.917]
[1729494067242,5.9155,169.05,168.99,20.7111]
[1729494067632,8.94814678,169.06,168.98,15.6306]
[1729494067940,5.9173,169.0,168.98,15.6306]
[1729494068139,20.0,169.04,168.95,14.7964]
[1729494068343,5.9172,169.0,168.95,14.7964]
[1729494068725,55.44,169.04,168.94,22.4802]
[1729494069036,20.0,169.02,168.94,22.4802]
[1729494069625,5.9179,168.98,168.94,22.4802]
[1729494070245,5.9179,168.98,168.94,16.3146]
[1729494070444,5.9179,168.98,168.92,5.9199]
[1729494070940,55.44,169.02,168.91,14.8004]
[1729494071124,55.44,169.0,168.9,104.00609564]
[1729494071329,5.9191,168.95,168.9,104.00609564]
[1729494071543,5.9191,168.95,168.9,109.92659564]
[1729494071733,14.7901,169.04,168.9,104.00609564]
[1729494071939,5.9171,169.01,168.94,20.7169]
[1729494072143,5.9172,169.0,168.94,20.7169]
[1729494073131,5.9181,168.98,168.91,5.9203]
[1729494073337,5.9181,168.98,168.92,5.9199]
[1729494073654,5.9183,168.97,168.91,5.9202]
[1729494074038,5.9178,168.98,168.92,5.9199]
[1729494074745,6.11918624,169.01,168.91,14.8007]
[1729494074950,5.9185,168.97,168.91,14.8007]
[1729494075148,35.44,169.0,168.9,104.00609564]
[1729494075347,5.919,168.95,168.9,104.00609564]
[1729494075549,5.9193,168.94,168.9,104.00609564]
[1729494075758,5.9188,168.96,168.9,109.92669564]
[1729494076252,20.0,168.98,168.92,5.9196]
[1729494076430,20.0,169.0,168.92,5.9196]
[1729494077134,5.9182,168.97,168.92,20.7193]
[1729494077649,5.9175,169.0,168.9,104.00609564]
[1729494077857,6.11918624,169.01,168.95,5.9189]
[1729494078043,5.9177,168.99,168.94,20.9314]
[1729494078445,12.03608624,169.01,168.95,5.9188]
[1729494078643,12.03608624,169.01,168.96,5.9185]
[1729494078951,6.11918624,169.01,168.94,6.1333]
[1729494079149,6.2627,169.11,168.94,6.1333]
[1729494079353,15.06144041,169.06,169.02,5.9162]
[1729494079654,8.94814678,169.06,169.02,5.9162]
[1729494080151,8.94814678,169.06,169.01,14.7917]
[1729494080536,8.94814678,169.06,169.02,5.9164]
[1729494080732,8.94814678,169.06,169.03,5.9158]
[1729494081352,8.94814678,169.06,168.96,0.1]
[1729494081657,8.94814678,169.06,169.02,5.9164]
[1729494082527,8.94814678,169.06,169.0,14.7921]
[1729494082732,8.94814678,169.06,168.95,16.1318]
[1729494082943,5.89046,169.04,168.98,5.9178]
[1729494083435,20.0,169.05,168.95,16.1318]
[1729494083764,5.9163,169.03,168.97,5.9181]
[1729494084047,5.9163,169.03,168.98,5.9178]
[1729494084253,5.9158,169.04,168.98,5.9178]
[1729494084562,5.9161,169.03,168.96,20.7146]
[1729494084762,20.0,169.05,168.95,16.1318]
[1729494084932,5.9171,169.01,168.95,16.1318]
[1729494085330,5.9171,169.01,168.95,22.0506]
[1729494085534,5.9171,169.0,168.95,16.1318]
[1729494085838,5.9175,168.99,168.95,16.1318]
[1729494086365,79.216884,169.02,168.9,109.49849564]
[1729494086534,5.9185,168.96,168.9,109.49849564]
[1729494088441,5.9189,168.95,168.9,103.57799564]
[1729494089333,5.9189,168.95,168.9,109.49859564]
[1729494091445,5.9189,168.95,168.9,103.57799564]
[1729494091640,79.316884,168.97,168.9,87.78319564]
[1729494091841,5.9203,168.91,168.9,87.78319564]
[1729494093354,35.9203,168.91,168.9,87.78319564]
[1729494094155,55.9203,168.91,168.9,87.78319564]
[1729494095764,30.0,168.91,168.9,87.78319564]
[1729494095942,35.9203,168.91,168.9,87.78319564]
[1729494097160,55.9203,168.91,168.9,87.78319564]
[1729494097454,79.697184,168.91,168.9,82.91199564]
[1729494097841,49.697184,168.91,168.9,82.91199564]
[1729494098342,85.137184,168.91,168.9,82.91199564]
[1729494099561,115.137184,168.91,168.9,82.91199564]
[1729494100559,121.22952344,168.91,168.9,82.91199564]
[1729494101751,85.78952344,168.91,168.9,82.91199564]
[1729494101958,62.01263944,168.91,168.9,82.91199564]
[1729494102461,42.01263944,168.91,168.9,82.91199564]
[1729494103159,35.9203,168.91,168.9,82.91199564]
[1729494104243,55.9203,168.91,168.9,82.91199564]
[1729494104863,25.9203,168.91,168.9,82.91199564]
[1729494107255,6.09010515,168.92,168.9,82.91199564]
[1729494107456,6.09010515,168.92,168.9,88.83249564]
[1729494107661,5.9192,168.95,168.9,88.83249564]
[1729494107947,6.08845168,168.98,168.9,82.91199564]
[1729494108445,35.44,168.95,168.9,82.91199564]
[1729494108641,20.0,168.94,168.9,82.91199564]
[1729494109256,43.776884,168.97,168.9,82.91199564]
[1729494109562,5.9203,168.91,168.9,82.91199564]
[1729494110068,5.9199,168.93,168.9,82.91199564]
[1729494110366,5.9197,168.93,168.9,82.91199564]
[1729494110879,5.9201,168.92,168.9,82.91199564]
[1729494111543,43.776884,168.97,168.9,82.91199564]
[1729494111850,6.08845168,168.98,168.94,15.5897]
[1729494112170,5.9166,169.02,168.96,5.9185]
[1729494112345,5.9171,169.0,168.95,6.5937]
[1729494112971,6.08697545,169.03,168.97,5.9181]
[1729494113147,6.08697545,169.03,168.98,5.9177]
[1729494113349,5.916,169.04,168.98,5.9177]
[1729494114268,20.94935191,169.06,168.99,14.7935]
[1729494115450,15.03405191,169.06,169.01,5.9167]
[1729494115653,8.94814678,169.06,169.01,5.9167]
[1729494116363,6.09075185,169.09,169.01,6.1853]
[1729494116566,5.9133,169.11,169.01,6.1853]
[1729494116748,35.44,169.12,169.01,12.102]
[1729494116950,5.9136,169.1,169.01,12.102]
[1729494117173,5.9146,169.08,169.01,12.102]
[1729494117875,55.44,169.1,169.01,6.1853]
[1729494118253,23.776884,169.09,169.01,6.1853]
[1729494118474,5.9155,169.05,169.01,6.1853]
[1729494118974,20.0,169.08,169.01,6.1853]
[1729494119477,34.7876,169.06,168.97,6.2213]
[1729494119679,20.0,169.02,168.96,15.906]
[1729494120170,20.0,169.05,168.96,15.906]
[1729494120361,23.776884,169.04,168.96,15.906]
[1729494120564,20.0,169.03,168.96,15.906]
[1729494121067,23.73524952,169.07,168.96,15.906]
[1729494121258,43.776884,169.06,168.96,15.906]
[1729494121461,5.9156,169.05,168.99,5.9174]
[1729494122469,5.9158,169.04,168.97,20.7133]
[1729494122781,5.9158,169.04,168.98,5.9178]
[1729494125164,5.9158,169.04,168.96,15.906]
[1729494125165,43.776884,169.06,169.01,5.9165]
[1729494125369,8.94814952,169.07,169.01,5.9164]
[1729494125370,14.86314952,169.07,169.01,5.9164]
[1729494125777,8.94814952,169.07,169.04,5.9156]
[1729494125985,8.94814952,169.07,169.03,15.1164]
[1729494126163,8.94814952,169.07,169.05,5.9151]
[1729494126476,8.94814952,169.07,169.06,5.915]
[1729494126783,5.913,169.12,169.06,5.915]
[1729494128082,20.0,169.12,169.05,14.7885]
[1729494128376,25.9129,169.12,169.05,20.7035]
[1729494128560,20.0,169.12,169.05,20.7035]
[1729494128756,5.914,169.09,169.03,21.0322]
[1729494129174,5.9136,169.1,169.03,21.0322]
[1729494129569,5.914,169.09,169.03,21.0322]
[1729494130978,5.9136,169.1,169.04,5.9156]
[1729494131180,5.9136,169.1,169.04,5.9157]
[1729494131381,5.9134,169.11,169.04,20.7047]
[1729494131591,5.9134,169.11,169.05,5.9153]
[1729494132164,5.9134,169.11,169.06,5.915]
[1729494133383,20.0,169.12,169.07,14.7866]
[1729494133594,25.913,169.12,169.07,14.7866]
[1729494134469,6.09737324,169.13,169.1,5.9136]
[1729494134670,5.9107,169.19,169.13,5.9126]
[1729494134881,6.09181704,169.18,169.13,5.9126]
[1729494135078,6.09181704,169.18,169.12,15.8953]
[1729494135279,35.44,169.21,169.14,5.9122]
[1729494135591,35.44,169.21,169.12,15.8953]
[1729494135592,41.53127009,169.21,169.12,15.8953]
[1729494135977,5.912,169.15,169.12,15.8953]
[1729494136176,5.9115,169.17,169.12,15.8953]
[1729494136597,59.216884,169.16,169.08,16.5215]
[1729494136897,23.776884,169.16,169.08,16.5215]
[1729494137084,5.9125,169.14,169.09,5.914]
[1729494137295,20.0,169.15,169.08,16.5215]
[1729494137494,6.09127009,169.21,169.13,5.9122]
[1729494137789,20.0,169.18,169.13,5.9125]
[1729494138375,6.09127009,169.21,169.14,5.9121]
[1729494138376,25.9101,169.2,169.14,5.9121]
[1729494138701,20.0,169.2,169.12,5.9126]
[1729494139073,55.44,169.2,169.12,20.6949]
[1729494139274,55.44,169.2,169.08,16.5215]
[1729494139481,35.44,169.18,169.08,16.5215]
[1729494139685,5.9127,169.13,169.08,16.5215]
[1729494139901,5.9133,169.12,169.08,16.5215]
[1729494140595,35.44,169.16,169.08,16.5215]
[1729494140797,20.0,169.15,169.08,16.5215]
[1729494141005,20.86627009,169.21,169.08,16.5215]
[1729494141006,20.0,169.17,169.11,5.9131]
[1729494141587,20.86627009,169.21,169.13,5.9125]
[1729494141588,20.0,169.18,169.13,5.9125]
[1729494141786,5.9108,169.19,169.08,16.5215]
[1729494141989,5.9113,169.17,169.12,14.7824]
[1729494142185,41.53127009,169.21,169.08,16.5215]
[1729494142389,5.914,169.09,169.08,16.5215]
[1729494142705,0.1,169.18,169.08,16.5215]
[1729494142706,5.9135,169.11,169.08,16.5215]
[1729494143901,20.0,169.14,169.08,16.5215]
[1729494144212,20.0,169.14,169.1,14.784]
[1729494144381,20.0,169.15,169.1,20.6974]
[1729494145279,29.688484,169.16,169.1,20.6974]
[1729494145481,5.9112,169.17,169.08,16.5215]
[1729494145705,5.9112,169.17,169.12,5.9129]
[1729494146891,11.99921985,169.19,169.13,5.9124]
[1729494147087,5.911,169.18,169.13,5.9124]
[1729494147287,6.08861985,169.19,169.12,14.7822]
[1729494147491,20.0,169.18,169.13,5.9124]
[1729494147705,20.0,169.18,169.14,5.9121]
[1729494148216,11.99911985,169.19,169.14,5.9121]
[1729494149115,11.99911985,169.19,169.08,16.5215]
[1729494149411,11.99911985,169.19,169.13,5.9125]
[1729494149905,6.08861985,169.19,169.13,5.9125]
[1729494150211,25.9109,169.18,169.13,5.9125]
[1729494150985,20.0,169.18,169.14,5.9119]
[1729494152208,23.776884,169.17,169.08,16.5215]
[1729494152507,23.776884,169.15,169.09,14.7842]
[1729494152706,20.0,169.16,169.09,14.7842]
[1729494152707,5.9126,169.13,169.09,14.7842]
[1729494153585,5.913,169.12,169.08,16.5215]
[1729494153785,5.9124,169.14,169.08,16.5215]
[1729494153985,20.0,169.12,169.08,16.5215]
[1729494154200,25.9132,169.12,169.08,16.5215]
[1729494155208,5.9132,169.12,169.08,16.5215]
[1729494157095,29.689584,169.13,169.08,16.5215]
[1729494158688,29.689584,169.13,169.08,22.4358]
[1729494160011,6.09044824,169.14,169.1,5.9136]
[1729494160195,5.9122,169.15,169.09,20.699]
[1729494160390,6.09018106,169.17,169.09,20.699]
[1729494160596,5.9125,169.14,169.09,14.785]
[1729494161299,29.689484,169.13,169.08,16.5215]
[1729494163909,23.776884,169.16,169.08,16.5215]
[1729494164118,5.912,169.15,169.09,20.699]
[1729494166912,6.09018106,169.17,169.12,5.9129]
[1729494167113,6.09018106,169.17,169.13,5.9125]
[1729494167329,5.9108,169.18,169.13,5.9125]
[1729494168511,5.9108,169.18,169.12,5.9127]
[1729494169109,20.0,169.18,169.13,5.9123]
[1729494170292,12.00019033,169.19,169.12,14.7823]
[1729494170498,5.9105,169.19,169.14,5.9122]
[1729494171016,20.0,169.21,169.16,5.9113]
[1729494171400,11.99891646,169.22,169.2,20.6851]
[1729494171401,6.08931646,169.22,169.2,20.6851]
[1729494171718,338.8882,169.35,169.17,22.4536]
[1729494171719,44.3882,169.35,169.22,5.9092]
[1729494171904,6.09138806,169.29,169.21,14.7745]
[1729494172214,6.09138806,169.29,169.2,5.9101]
[1729494172215,5.9081,169.26,169.19,5.9104]
[1729494172394,6.09182397,169.28,169.2,5.9098]
[1729494172592,5.9078,169.27,169.2,20.6851]
[1729494172796,20.0,169.26,169.2,20.6851]
[1729494173027,20.0,169.27,169.2,14.7753]
[1729494173195,20.0,169.27,169.17,22.5536]
[1729494173399,6.09182397,169.28,169.23,5.909]
[1729494173820,5.9069,169.3,169.22,5.9093]
[1729494174122,5.9069,169.3,169.24,5.9085]
[1729494174424,0.1,169.32,169.17,22.4536]
[1729494174623,0.1,169.3,169.17,22.4536]
[1729494174925,57.72239353,169.31,169.17,22.4536]
[1729494174926,23.776884,169.22,169.17,22.4536]
[1729494175096,14.7675,169.29,169.17,22.4536]
[1729494175430,20.0,169.24,169.19,5.9103]
[1729494175896,35.6,169.31,169.18,14.7769]
[1729494175897,43.776884,169.26,169.2,5.91]
[1729494176397,43.776884,169.26,169.22,5.9093]
[1729494176698,43.776884,169.26,169.21,14.7744]
[1729494176902,49.684884,169.26,169.21,14.7744]
[1729494177099,49.684884,169.26,169.17,22.4536]
[1729494177300,5.9084,169.25,169.18,5.9105]
[1729494178026,5.9084,169.25,169.19,5.9104]
[1729494178795,12.19787051,169.32,169.17,22.4536]
[1729494179708,5.907,169.29,169.23,5.909]
[1729494180320,6.09587051,169.32,169.17,22.6536]
[1729494180631,5.9069,169.3,169.23,5.9091]
[1729494180804,5.9084,169.25,169.2,5.9101]
[1729494181012,5.9084,169.25,169.19,20.6864]
[1729494181204,14.7658,169.31,169.2,5.9101]
[1729494181425,5.9081,169.26,169.2,5.9101]
[1729494181827,43.776884,169.26,169.21,5.9097]
[1729494182029,23.776884,169.3,169.17,22.4536]
[1729494182030,20.0,169.29,169.24,5.9086]
[1729494182931,6.09587051,169.32,169.25,14.7708]
[1729494183104,5.9064,169.31,169.25,14.7708]
[1729494183310,5.9064,169.31,169.25,20.6791]
[1729494183510,6.09587051,169.32,169.25,20.6791]
[1729494183733,6.09587051,169.32,169.25,14.7708]
[1729494184230,20.0,169.31,169.25,14.7708]
[1729494184405,5.9069,169.3,169.25,14.7708]
[1729494184920,23.776884,169.29,169.25,14.7708]
[1729494185522,11.99840865,169.3,169.25,20.6791]
[1729494185734,6.09180865,169.3,169.26,16.1984]
[1729494186037,5.9054,169.34,169.27,14.7693]
[1729494186333,6.09293995,169.32,169.27,14.7693]
[1729494187628,11.99893995,169.32,169.27,14.7693]
[1729494188033,5.9057,169.33,169.27,14.7693]
[1729494188420,23.776884,169.32,169.27,20.6769]
[1729494189862,20.0,169.34,169.27,14.7693]
[1729494190040,20.0,169.34,169.3,5.9065]
[1729494190214,5.9042,169.38,169.26,16.2984]
[1729494190518,6.09102976,169.39,169.31,5.9062]
[1729494190831,5.9046,169.36,169.31,5.9062]
[1729494192245,5.9046,169.36,169.27,14.7693]
[1729494192246,23.776884,169.38,169.32,5.9058]
[1729494192419,23.776884,169.36,169.3,20.6722]
[1729494192624,23.776884,169.36,169.26,16.1984]
[1729494192810,23.776884,169.34,169.26,16.1984]
[1729494193335,23.776884,169.36,169.31,5.9063]
[1729494194032,23.776884,169.36,169.26,16.1984]
[1729494194234,23.776884,169.36,169.32,5.9056]
[1729494194415,20.0,169.36,169.32,5.9056]
[1729494194832,23.776884,169.36,169.3,14.7658]
[1729494195031,5.9051,169.35,169.3,14.7658]
[1729494195238,5.9054,169.34,169.27,5.9073]
[1729494195415,5.9054,169.34,169.28,5.9073]
[1729494195614,23.776884,169.36,169.26,16.1984]
[1729494195939,5.9049,169.35,169.29,5.9066]
[1729494196517,29.681484,169.36,169.3,5.9066]
[1729494197738,23.776884,169.36,169.32,5.9059]
[1729494198022,5.9042,169.37,169.31,5.906]
[1729494198220,23.776884,169.36,169.3,14.7659]
[1729494198437,5.9048,169.36,169.3,20.6724]
[1729494198721,5.9049,169.35,169.3,20.6724]
[1729494199644,5.9045,169.37,169.31,5.9063]
[1729494199831,23.776884,169.36,169.31,5.9063]
[1729494201621,5.9045,169.37,169.27,0.1]
[1729494201830,23.776884,169.36,169.32,5.9059]
[1729494202540,23.776884,169.36,169.31,14.7658]
[1729494202740,5.9043,169.37,169.32,5.9057]
[1729494202944,23.776884,169.36,169.32,5.9057]
[1729494203145,23.776884,169.36,169.31,20.672]
[1729494203533,29.681484,169.36,169.31,20.672]
[1729494203931,23.776884,169.36,169.31,14.7658]
[1729494204147,23.776884,169.36,169.32,5.9059]
[1729494204337,6.09102976,169.39,169.26,16.2984]
[1729494204338,6.09102976,169.39,169.27,0.2]
[1729494204542,6.09102976,169.39,169.27,0.1]
[1729494204866,5.9038,169.38,169.32,5.9058]
[1729494205839,23.776884,169.37,169.32,5.9058]
[1729494207456,6.09102976,169.39,169.34,30.1591]
[1729494207664,20.0,169.43,169.34,30.1591]
[1729494207966,26.09920281,169.43,169.36,14.7611]
[1729494208142,26.09920281,169.43,169.34,15.3961]
[1729494208335,5.9031,169.4,169.35,5.9048]
[1729494208534,5.9028,169.41,169.35,5.9048]
[1729494208942,5.9024,169.42,169.34,15.3961]
[1729494209169,14.7565,169.42,169.3,21.3024]
[1729494209346,5.9028,169.41,169.3,21.3025]
[1729494209666,5.9046,169.36,169.3,15.3961]
[1729494209859,23.776884,169.39,169.3,15.3961]
[1729494210370,23.776884,169.39,169.34,14.7629]
[1729494210569,23.776884,169.39,169.35,5.9047]
[1729494210759,5.9032,169.4,169.35,5.9047]
[1729494211249,6.09920281,169.43,169.36,5.9044]
[1729494211250,5.9025,169.42,169.36,5.9044]
[1729494211450,5.9021,169.44,169.38,5.9038]
[1729494211666,35.5,169.49,169.4,16.3322]
[1729494211970,6.09800195,169.46,169.4,36.9927]
[1729494212152,5.9011,169.46,169.4,36.9927]
[1729494212572,5.9014,169.45,169.4,36.9927]
[1729494213177,23.776884,169.44,169.4,36.9927]
[1729494213468,5.9014,169.45,169.4,36.9927]
[1729494213469,5.9011,169.46,169.4,36.9925]
[1729494213868,5.9011,169.46,169.41,5.9027]
[1729494214172,11.99844093,169.48,169.41,20.6598]
[1729494214752,23.776884,169.47,169.41,20.6598]
[1729494214949,11.99844093,169.48,169.42,5.9023]
[1729494215171,5.9007,169.48,169.42,5.9023]
[1729494215375,5.9002,169.49,169.42,20.658]
[1729494215671,20.0,169.48,169.43,5.9021]
[1729494216057,5.9002,169.49,169.42,14.7559]
[1729494216260,20.0,169.48,169.44,5.9017]
[1729494216450,20.0,169.48,169.42,14.7559]
[1729494216656,23.776884,169.47,169.43,5.9021]
[1729494216979,0.6050827,169.5,169.46,5.9007]
[1729494217167,0.6050827,169.5,169.47,5.9007]
[1729494217377,0.6050827,169.5,169.47,5.9004]
[1729494218353,0.6050827,169.5,169.46,14.7523]
[1729494218551,23.776884,169.49,169.46,14.7523]
[1729494219372,29.677084,169.49,169.43,5.9019]
[1729494219578,0.6050827,169.5,169.4,16.4322]
[1729494219873,0.6050827,169.5,169.46,5.901]
[1729494220076,0.6050827,169.5,169.49,5.9]
[1729494220964,5.20068187,169.55,169.49,16.0597]
[1729494221276,5.20068187,169.55,169.5,5.8996]
[1729494221574,11.09868187,169.55,169.5,14.7492]
[1729494222251,23.776884,169.54,169.5,14.7492]
[1729494222666,23.776884,169.54,169.51,5.899]
[1729494222959,23.776884,169.54,169.5,14.7492]
[1729494223162,1.02534601,169.6,169.5,14.7492]
[1729494223476,20.0,169.56,169.51,5.8991]
[1729494224072,25.8976,169.56,169.5,14.7492]
[1729494224574,23.776884,169.53,169.5,20.6488]
[1729494224883,23.776884,169.53,169.49,22.5695]
[1729494225067,20.0,169.54,169.49,43.2187]
[1729494225263,5.8976,169.56,169.5,5.8996]
[1729494225471,20.0,169.55,169.5,5.8996]
[1729494225678,5.8976,169.56,169.5,5.8996]
[1729494225982,5.8981,169.55,169.49,43.2187]
[1729494226180,29.675384,169.54,169.49,30.809]
[1729494227993,20.0,169.5,169.45,21.9371]
[1729494228286,20.0,169.53,169.45,15.6306]
[1729494228287,23.776884,169.49,169.45,15.6306]
[1729494228483,23.776884,169.5,169.45,15.6306]
[1729494228691,23.776884,169.5,169.47,5.9006]
[1729494229063,14.7434,169.57,169.47,14.7518]
[1729494229263,23.776884,169.53,169.47,20.6522]
[1729494229562,5.898,169.55,169.49,5.8998]
[1729494229762,5.8976,169.56,169.5,5.8995]
[1729494230283,20.0,169.54,169.5,5.8995]
[1729494230786,20.0,169.54,169.49,14.7499]
[1729494230787,23.776884,169.53,169.49,14.7499]
[1729494230974,29.675784,169.53,169.46,5.901]
[1729494231289,29.675784,169.53,169.47,5.9007]
[1729494232179,23.776884,169.53,169.48,5.9001]
[1729494232379,23.776884,169.54,169.48,5.9001]
[1729494232683,23.776884,169.52,169.48,5.9001]
[1729494233360,23.776884,169.52,169.47,20.6522]
[1729494233572,29.675884,169.52,169.47,20.6522]
[1729494233870,23.776884,169.52,169.47,20.6522]
[1729494234068,23.776884,169.52,169.45,15.6306]
[1729494234069,23.776884,169.52,169.45,21.5317]
[1729494234272,23.776884,169.47,169.41,22.9049]
[1729494234572,23.776884,169.47,169.26,11.79479641]
[1729494234573,23.776884,169.43,169.37,22.7936]
[1729494234772,23.776884,169.39,169.37,16.4588]
[1729494235074,23.776884,169.39,169.33,21.0981]
[1729494235075,20.0,169.38,169.33,37.5569]
[1729494235263,23.776884,169.39,169.33,43.4624]
[1729494235766,23.776884,169.35,169.33,43.4624]
[1729494236589,30.0,169.34,169.33,43.4624]
[1729494238491,23.776884,169.44,169.39,5.9034]
[1729494238694,23.776884,169.44,169.4,5.9028]
[1729494238866,5.9012,169.46,169.4,5.9028]
[1729494239976,20.0,169.48,169.39,14.7587]
[1729494240180,20.0,169.46,169.4,5.9031]
[1729494240987,20.0,169.46,169.39,20.6622]
[1729494241291,50.84,169.49,169.39,20.6622]
[1729494241292,43.776884,169.48,169.39,20.6622]
[1729494241477,23.776884,169.42,169.36,5.9042]
[1729494241679,23.776884,169.42,169.33,22.7936]
[1729494241891,23.776884,169.42,169.38,5.9036]
[1729494242192,23.776884,169.42,169.39,5.9032]
[1729494243382,23.776884,169.43,169.39,5.9032]
[1729494243580,23.776884,169.43,169.4,5.9031]
[1729494243792,23.776884,169.43,169.36,0.1]
[1729494243972,6.1473,169.51,169.36,0.2]
[1729494244174,5.9002,169.49,169.43,5.902]
[1729494244892,20.0,169.48,169.43,5.902]
[1729494245276,20.0,169.46,169.43,5.902]
[1729494245477,23.776884,169.45,169.43,5.902]
[1729494247697,29.678484,169.45,169.34,0.1]
[1729494247901,23.776884,169.49,169.4,5.9029]